[Event "Torneo Nuevo Centro. Jornada 11"]
[Site "Chess.com"]
[Date "2020.08.28"]
[Round "9"]
[White "Sampedro Roig, Josep Francesc"]
[Black "Martin Ayala, David"]
[Result "1-0"]
[WhiteElo "1857"]
[BlackElo "1869"]
[TimeControl "180+2"]
[EndTime "12:09:33 PDT"]
[Termination "Victoria de Abrekurios por abandono"]

1. e4 {[%clk 0:02:59.8]} 1... d5 {[%clk 0:03:00.5]} 2. exd5 {[%clk 0:03:00.4]}
2... Nf6 {[%clk 0:03:01.8]} 3. d4 {[%clk 0:03:01]} 3... Nxd5 {[%clk 0:03:02.9]}
4. c4 {[%clk 0:03:01.8]} 4... Nb6 {[%clk 0:03:04.2]} 5. Nf3 {[%clk 0:03:02.5]}
5... g6 {[%clk 0:03:04.6]} 6. Nc3 {[%clk 0:03:02.8]} 6... Bg7 {[%clk 0:03:05.1]}
7. Be3 {[%clk 0:03:03.1]} 7... O-O {[%clk 0:03:05.7]} 8. Be2 {[%clk 0:03:03.8]}
8... Bg4 {[%clk 0:03:06.4]} 9. b3 {[%clk 0:02:56.7]} 9... c5 {[%clk 0:02:59.3]}
10. Nb5 {[%clk 0:02:29]} 10... Nc6 {[%clk 0:02:44.7]} 11. Rc1 {[%clk 0:02:25.9]}
11... cxd4 {[%clk 0:02:33]} 12. Nfxd4 {[%clk 0:02:17.2]} 12... Bxe2 {[%clk
0:02:33]} 13. Nxe2 {[%clk 0:02:06.3]} 13... a6 {[%clk 0:02:33.5]} 14. Qxd8
{[%clk 0:02:03.7]} 14... Rfxd8 {[%clk 0:02:12.8]} 15. Bxb6 {[%clk 0:02:03.1]}
15... axb5 {[%clk 0:02:14]} 16. Bxd8 {[%clk 0:02:03.1]} 16... Nxd8 {[%clk
0:02:14.2]} 17. cxb5 {[%clk 0:01:54.3]} 17... Rxa2 {[%clk 0:02:13.9]} 18. Rc8
{[%clk 0:01:54.9]} 18... Bf8 {[%clk 0:02:08.7]} 19. Rg1 {[%clk 0:01:42.2]} 19...
Ne6 {[%clk 0:02:03.8]} 20. f3 {[%clk 0:01:32]} 20... Kg7 {[%clk 0:02:01.6]} 21.
Kf2 {[%clk 0:01:29.8]} 21... Nf4 {[%clk 0:01:59.1]} 22. Re1 {[%clk 0:01:12.5]}
22... Nd3+ {[%clk 0:01:59.4]} 23. Kf1 {[%clk 0:01:13.7]} 23... Nxe1 {[%clk
0:02:00.1]} 24. Kxe1 {[%clk 0:01:14.9]} 24... e5 {[%clk 0:02:00.6]} 25. Rb8
{[%clk 0:01:09.4]} 25... Ra1+ {[%clk 0:01:55.2]} 26. Kd2 {[%clk 0:01:06.1]}
26... Bb4+ {[%clk 0:01:52.3]} 27. Kd3 {[%clk 0:01:03.4]} 27... Rb1 {[%clk
0:01:43.5]} 28. Kc4 {[%clk 0:01:01.1]} 28... Bd6 {[%clk 0:01:35.7]} 29. Rxb7
{[%clk 0:01:01.7]} 29... Rb2 {[%clk 0:01:36.9]} 30. Nc3 {[%clk 0:00:49.8]} 30...
Kf6 {[%clk 0:01:33.3]} 31. Nd5+ {[%clk 0:00:47.3]} 31... Ke6 {[%clk 0:01:33]}
32. Nc3 {[%clk 0:00:41.1]} 32... Rxg2 {[%clk 0:01:30.4]} 33. b6 {[%clk
0:00:40.2]} 33... Rf2 {[%clk 0:01:21.1]} 34. Ne4 {[%clk 0:00:39.7]} 34... Rxf3
{[%clk 0:01:21]} 35. Nxd6 {[%clk 0:00:40.5]} 35... Kxd6 {[%clk 0:01:21.6]} 36.
Rc7 {[%clk 0:00:36.9]} 36... Rf2 {[%clk 0:01:16.3]} 37. Kb5 {[%clk 0:00:36.1]}
37... Rxh2 {[%clk 0:01:09.9]} 38. Rc4 {[%clk 0:00:33.8]} 38... Rb2 {[%clk
0:01:05.2]} 39. b4 {[%clk 0:00:29.4]} 39... e4 {[%clk 0:00:58.8]} 40. b7 {[%clk
0:00:29]} 40... e3 {[%clk 0:00:57.6]} 41. b8=Q+ {[%clk 0:00:29.9]} 41... Ke6
{[%clk 0:00:59.5]} 42. Qb7 {[%clk 0:00:29.7]} 42... e2 {[%clk 0:00:58.2]} 43.
Qe4+ {[%clk 0:00:27]} 43... Kf6 {[%clk 0:00:57.9]} 44. Rc6+ {[%clk 0:00:26.8]}
44... Kg7 {[%clk 0:00:56.8]} 45. Qe5+ {[%clk 0:00:27.1]} 45... Kh6 {[%clk
0:00:57.2]} 46. Qf4+ {[%clk 0:00:26.8]} 46... Kg7 {[%clk 0:00:57.8]} 47. Qd4+
{[%clk 0:00:27.1]} 47... Kh6 {[%clk 0:00:58.2]} 48. Qe3+ {[%clk 0:00:26.6]}
48... Kg7 {[%clk 0:00:56.8]} 49. Rc1 {[%clk 0:00:26.8]} 49... f5 {[%clk
0:00:55.6]} 50. Qe5+ {[%clk 0:00:27]} 50... Kh6 {[%clk 0:00:57.3]} 51. Qxb2
{[%clk 0:00:27.9]} 51... f4 {[%clk 0:00:58.3]} 52. Qxe2 {[%clk 0:00:28.4]} 52...
g5 {[%clk 0:01:00.2]} 53. Rh1+ {[%clk 0:00:29.2]} 53... Kg6 {[%clk 0:01:02.1]}
54. Qe4+ {[%clk 0:00:30.1]} 54... Kf6 {[%clk 0:01:02.4]} 55. Rh6+ {[%clk
0:00:30.7]} 55... Kg7 {[%clk 0:01:04.3]} 56. Rxh7+ {[%clk 0:00:31.8]} 56... Kf6
{[%clk 0:01:04.6]} 57. Rh6+ {[%clk 0:00:32.7]} 1

[Event "Torneo Nuevo Centro. Jornada 11"]
[Site "Chess.com"]
[Date "2020.08.28"]
[Round "9"]
[White "Blanco Solaz, Ramón"]
[Black "Martínez Escandell, Alfonso"]
[Result "0-1"]
[WhiteElo "1948"]
[BlackElo "1915"]
[TimeControl "180+2"]
[EndTime "12:09:45 PDT"]
[Termination "Victoria de Alfonso10 por abandono"]

1. Nf3 {[%clk 0:03:01.9]} 1... c5 {[%clk 0:02:57.1]} 2. c4 {[%clk 0:02:52.7]}
2... g6 {[%clk 0:02:57.1]} 3. Nc3 {[%clk 0:02:49.8]} 3... Bg7 {[%clk 0:02:57.9]}
4. g3 {[%clk 0:02:47.7]} 4... e6 {[%clk 0:02:56.4]} 5. Bg2 {[%clk 0:02:48.8]}
5... Ne7 {[%clk 0:02:57.5]} 6. O-O {[%clk 0:02:50.4]} 6... O-O {[%clk
0:02:56.7]} 7. d4 {[%clk 0:02:51.3]} 7... cxd4 {[%clk 0:02:53.6]} 8. Nxd4 {[%clk
0:02:52]} 8... Nbc6 {[%clk 0:02:49.8]} 9. Nc2 {[%clk 0:02:52.5]} 9... Qb6 {[%clk
0:02:44.2]} 10. Kh1 {[%clk 0:02:26.7]} 10... Qc5 {[%clk 0:02:37.4]} 11. Na3
{[%clk 0:02:10.2]} 11... a6 {[%clk 0:02:25.1]} 12. Be3 {[%clk 0:02:10.4]} 12...
Qb4 {[%clk 0:02:19.8]} 13. Qb3 {[%clk 0:01:58.3]} 13... Qxb3 {[%clk 0:02:16]}
14. axb3 {[%clk 0:01:59]} 14... Nf5 {[%clk 0:02:07]} 15. Bc5 {[%clk 0:01:55.1]}
15... d6 {[%clk 0:02:04.1]} 16. Bb6 {[%clk 0:01:56.6]} 16... Nfd4 {[%clk
0:01:58.7]} 17. Bc7 {[%clk 0:01:35.8]} 17... Nxb3 {[%clk 0:01:55.3]} 18. Rad1
{[%clk 0:01:36.3]} 18... d5 {[%clk 0:01:52.3]} 19. cxd5 {[%clk 0:01:36.9]} 19...
exd5 {[%clk 0:01:52.8]} 20. Nxd5 {[%clk 0:01:38.2]} 20... Bxb2 {[%clk
0:01:49.6]} 21. Nc4 {[%clk 0:01:38.6]} 21... Bg7 {[%clk 0:01:47]} 22. Ncb6
{[%clk 0:01:38.6]} 22... Bg4 {[%clk 0:01:35.8]} 23. Nxa8 {[%clk 0:01:37]} 23...
Rxa8 {[%clk 0:01:32.4]} 24. f3 {[%clk 0:01:35.8]} 24... Be6 {[%clk 0:01:29.8]}
25. Nb6 {[%clk 0:01:29.9]} 25... Re8 {[%clk 0:01:26.6]} 26. e3 {[%clk
0:01:25.2]} 26... h6 {[%clk 0:01:27]} 27. Rd3 {[%clk 0:01:23.6]} 27... Nc5
{[%clk 0:01:18.2]} 28. Ra3 {[%clk 0:01:25.2]} 28... Bb2 {[%clk 0:01:12.7]} 29.
Ra2 {[%clk 0:01:10.6]} 29... Bxa2 {[%clk 0:01:09.9]} 30. Rf2 {[%clk 0:01:12.5]}
30... Nd3 {[%clk 0:01:04.6]} 31. Rd2 {[%clk 0:01:13.3]} 31... Rxe3 {[%clk
0:00:59.7]} 32. h4 {[%clk 0:01:08.9]} 32... Re1+ {[%clk 0:00:54.3]} 33. Kh2
{[%clk 0:01:09.8]} 33... Bb1 {[%clk 0:00:45.4]} 34. f4 {[%clk 0:01:03.5]} 34...
Bc1 {[%clk 0:00:42.6]} 35. Nc4 {[%clk 0:00:37.7]} 35... Bxd2 {[%clk 0:00:42.4]}
36. Nxd2 {[%clk 0:00:39.6]} 36... Re2 {[%clk 0:00:39.4]} 37. Nxb1 {[%clk
0:00:39.6]} 37... Ne1 {[%clk 0:00:35.7]} 38. Kh3 {[%clk 0:00:41.1]} 38... Rxg2
{[%clk 0:00:33]} 39. Nc3 {[%clk 0:00:43]} 39... b5 {[%clk 0:00:28.9]} 40. Ne4
{[%clk 0:00:37.4]} 40... Rc2 {[%clk 0:00:25.7]} 41. Kg4 {[%clk 0:00:30.1]} 41...
Kg7 {[%clk 0:00:24.8]} 42. Nd6 {[%clk 0:00:28.3]} 42... h5+ {[%clk 0:00:24.2]}
43. Kh3 {[%clk 0:00:28.8]} 43... Nf3 {[%clk 0:00:24.7]} 44. g4 {[%clk
0:00:26.3]} 44... Ng1+ {[%clk 0:00:21.4]} 45. Kg3 {[%clk 0:00:27.2]} 45... hxg4
{[%clk 0:00:20.6]} 46. Kxg4 {[%clk 0:00:28.4]} 46... b4 {[%clk 0:00:20.3]} 47.
f5 {[%clk 0:00:28.3]} 47... gxf5+ {[%clk 0:00:20.9]} 48. Nxf5+ {[%clk
0:00:28.4]} 48... Kf8 {[%clk 0:00:21.1]} 49. Ne3 {[%clk 0:00:26.9]} 49... Rc1
{[%clk 0:00:20.3]} 50. Bd6+ {[%clk 0:00:19.1]} 50... Ke8 {[%clk 0:00:20.4]} 51.
Kf4 {[%clk 0:00:11.7]} 51... b3 {[%clk 0:00:21.1]} 52. Be5 {[%clk 0:00:11.2]}
52... Nxe5 {[%clk 0:00:20.3]} 0

[Event "Torneo Nuevo Centro. Jornada 11"]
[Site "Chess.com"]
[Date "2020.08.28"]
[Round "9"]
[White "Kovacevic, Slobodan"]
[Black "Conon, Catalin"]
[Result "0-1"]
[WhiteElo "2211"]
[BlackElo "1927"]
[TimeControl "180+2"]
[EndTime "12:12:01 PDT"]
[Termination "Victoria de CatalinConon por jaque mate"]

1. d4 {[%clk 0:03:01.9]} 1... Nf6 {[%clk 0:03:00.5]} 2. Nf3 {[%clk 0:03:00.4]}
2... g6 {[%clk 0:03:00.8]} 3. Bg5 {[%clk 0:02:59.7]} 3... Bg7 {[%clk 0:03:01.4]}
4. Nbd2 {[%clk 0:02:59.4]} 4... O-O {[%clk 0:03:01.8]} 5. c3 {[%clk 0:02:59]}
5... d6 {[%clk 0:03:02.5]} 6. e4 {[%clk 0:02:58.6]} 6... Nbd7 {[%clk 0:03:03.8]}
7. Qc2 {[%clk 0:02:57.5]} 7... e5 {[%clk 0:03:04.5]} 8. dxe5 {[%clk 0:02:56.3]}
8... dxe5 {[%clk 0:03:06.4]} 9. Be2 {[%clk 0:02:55.4]} 9... b6 {[%clk
0:03:02.8]} 10. O-O {[%clk 0:02:54.6]} 10... Bb7 {[%clk 0:03:02.1]} 11. b4
{[%clk 0:02:54.7]} 11... h6 {[%clk 0:03:02.1]} 12. Bh4 {[%clk 0:02:53.9]} 12...
Qe7 {[%clk 0:03:02]} 13. Rfe1 {[%clk 0:02:52.8]} 13... c5 {[%clk 0:03:02.3]} 14.
b5 {[%clk 0:02:51.4]} 14... Rfd8 {[%clk 0:02:31.4]} 15. Bd3 {[%clk 0:02:48.7]}
15... a6 {[%clk 0:01:47.7]} 16. a4 {[%clk 0:02:45.9]} 16... axb5 {[%clk
0:01:45.7]} 17. axb5 {[%clk 0:02:41.8]} 17... g5 {[%clk 0:01:20.5]} 18. Bg3
{[%clk 0:02:39.9]} 18... Ne8 {[%clk 0:01:21.9]} 19. Nc4 {[%clk 0:02:37]} 19...
f6 {[%clk 0:01:21.6]} 20. Ne3 {[%clk 0:02:35.3]} 20... Nf8 {[%clk 0:01:11.7]}
21. Nf5 {[%clk 0:02:33.7]} 21... Qf7 {[%clk 0:01:11.9]} 22. Qe2 {[%clk
0:02:30.5]} 22... Nd6 {[%clk 0:01:05.8]} 23. Nxd6 {[%clk 0:02:21.9]} 23... Rxd6
{[%clk 0:01:07.7]} 24. Bc4 {[%clk 0:02:20.5]} 24... Ne6 {[%clk 0:01:08.5]} 25.
Rxa8+ {[%clk 0:02:17.8]} 25... Bxa8 {[%clk 0:01:10.4]} 26. Qa2 {[%clk
0:02:12.9]} 26... Bb7 {[%clk 0:01:07.9]} 27. Qa7 {[%clk 0:02:09.5]} 27... Qd7
{[%clk 0:01:01.4]} 28. h3 {[%clk 0:02:06.5]} 28... Kh7 {[%clk 0:01:02.1]} 29.
Kh2 {[%clk 0:01:57.7]} 29... Bc8 {[%clk 0:00:52.5]} 30. Qb8 {[%clk 0:01:54.4]}
30... Qc7 {[%clk 0:00:32.9]} 31. Qa8 {[%clk 0:01:50.1]} 31... Qb7 {[%clk
0:00:27.8]} 32. Qa2 {[%clk 0:01:46.7]} 32... Nf4 {[%clk 0:00:23.7]} 33. Kg1
{[%clk 0:01:45.2]} 33... h5 {[%clk 0:00:10.4]} 34. h4 {[%clk 0:01:43.2]} 34...
g4 {[%clk 0:00:10.6]} 35. Nh2 {[%clk 0:01:41.5]} 35... Qd7 {[%clk 0:00:06.8]}
36. Nf1 {[%clk 0:01:40.3]} 36... Bb7 {[%clk 0:00:05.7]} 37. f3 {[%clk
0:01:33.3]} 37... gxf3 {[%clk 0:00:05.4]} 38. gxf3 {[%clk 0:01:31]} 38... Bh6
{[%clk 0:00:06.6]} 39. Ne3 {[%clk 0:01:27.7]} 39... Nd3 {[%clk 0:00:04.6]} 40.
Rd1 {[%clk 0:01:25.7]} 40... Bxe3+ {[%clk 0:00:05.1]} 41. Kh2 {[%clk 0:01:24.4]}
41... Bf4 {[%clk 0:00:05.4]} 42. Bxd3 {[%clk 0:01:22.2]} 42... Rxd3 {[%clk
0:00:05.9]} 43. Rxd3 {[%clk 0:01:22.3]} 43... Qxd3 {[%clk 0:00:07.8]} 44. Qf2
{[%clk 0:01:21.5]} 44... Bxg3+ {[%clk 0:00:08.5]} 45. Kxg3 {[%clk 0:01:18.6]}
45... Qd7 {[%clk 0:00:08.9]} 46. Qa2 {[%clk 0:01:16.6]} 46... Qg7+ {[%clk
0:00:07.2]} 47. Kf2 {[%clk 0:01:15.2]} 47... Bc8 {[%clk 0:00:06.7]} 48. Qd5
{[%clk 0:01:14.2]} 48... Qd7 {[%clk 0:00:05.3]} 49. Qa8 {[%clk 0:01:13]} 49...
Bb7 {[%clk 0:00:05.7]} 50. Qb8 {[%clk 0:01:13]} 50... Qd2+ {[%clk 0:00:06.5]}
51. Kg3 {[%clk 0:01:11.7]} 51... Qf4+ {[%clk 0:00:07.7]} 52. Kg2 {[%clk
0:01:11.3]} 52... Qd2+ {[%clk 0:00:06.7]} 53. Kh3 {[%clk 0:01:09]} 53... Bxe4
{[%clk 0:00:04.2]} 54. Qc7+ {[%clk 0:01:06.6]} 54... Kg6 {[%clk 0:00:05.4]} 55.
fxe4 {[%clk 0:01:05.9]} 55... Qe3+ {[%clk 0:00:06.5]} 56. Kg2 {[%clk 0:01:05.4]}
56... Qe2+ {[%clk 0:00:07.5]} 57. Kg1 {[%clk 0:01:05]} 57... Qe1+ {[%clk
0:00:08.8]} 58. Kg2 {[%clk 0:01:05.2]} 58... Qxe4+ {[%clk 0:00:09.8]} 59. Kf2
{[%clk 0:01:04.3]} 59... Qxh4+ {[%clk 0:00:10.8]} 60. Ke3 {[%clk 0:01:03.9]}
60... Qf4+ {[%clk 0:00:11.8]} 61. Kd3 {[%clk 0:01:04]} 61... c4+ {[%clk
0:00:12.9]} 62. Kc2 {[%clk 0:01:03.5]} 62... Qf2+ {[%clk 0:00:13.4]} 63. Kb1
{[%clk 0:01:03.3]} 63... Qe1+ {[%clk 0:00:14.2]} 64. Kb2 {[%clk 0:01:02.7]}
64... Qd2+ {[%clk 0:00:15.1]} 65. Kb1 {[%clk 0:01:02.8]} 65... Qxc3 {[%clk
0:00:14.6]} 66. Qc6 {[%clk 0:01:01.6]} 66... Qb3+ {[%clk 0:00:15.8]} 67. Kc1
{[%clk 0:01:00.1]} 67... Qe3+ {[%clk 0:00:16.8]} 68. Kc2 {[%clk 0:00:59]} 68...
Kf5 {[%clk 0:00:14.3]} 69. Qd7+ {[%clk 0:00:56.3]} 69... Kf4 {[%clk 0:00:15.2]}
70. Qf7 {[%clk 0:00:54.4]} 70... Qd3+ {[%clk 0:00:10.8]} 71. Kc1 {[%clk
0:00:53.1]} 71... f5 {[%clk 0:00:11.2]} 72. Qxh5 {[%clk 0:00:51.5]} 72... c3
{[%clk 0:00:09.6]} 73. Qh4+ {[%clk 0:00:50.4]} 73... Ke3 {[%clk 0:00:10.2]} 74.
Qg3+ {[%clk 0:00:50.1]} 74... Ke4 {[%clk 0:00:10.8]} 75. Qh4+ {[%clk 0:00:49.5]}
75... f4 {[%clk 0:00:12.1]} 76. Qh7+ {[%clk 0:00:49]} 76... Kd4 {[%clk
0:00:13.1]} 77. Qd7+ {[%clk 0:00:46.5]} 77... Ke3 {[%clk 0:00:14.3]} 78. Qd4+
{[%clk 0:00:44.6]} 78... Qxd4 {[%clk 0:00:14.9]} 79. Kc2 {[%clk 0:00:43.9]}
79... Qd2+ {[%clk 0:00:15.9]} 80. Kb3 {[%clk 0:00:44]} 80... Qb2+ {[%clk
0:00:16.7]} 81. Kc4 {[%clk 0:00:43.9]} 81... Qxb5+ {[%clk 0:00:17.9]} 82. Kxb5
{[%clk 0:00:43.4]} 82... c2 {[%clk 0:00:19.8]} 83. Kxb6 {[%clk 0:00:43.1]} 83...
c1=Q {[%clk 0:00:21.7]} 84. Kb5 {[%clk 0:00:43.2]} 84... Qc3 {[%clk 0:00:22.5]}
85. Kb6 {[%clk 0:00:43.2]} 85... Qc4 {[%clk 0:00:23.7]} 86. Kb7 {[%clk
0:00:43.1]} 86... Qc5 {[%clk 0:00:24.9]} 87. Kb8 {[%clk 0:00:42.6]} 87... Qe7
{[%clk 0:00:24.8]} 88. Kc8 {[%clk 0:00:42.2]} 88... f3 {[%clk 0:00:26.3]} 89.
Kb8 {[%clk 0:00:41.8]} 89... f2 {[%clk 0:00:28.2]} 90. Kc8 {[%clk 0:00:25]}
90... f1=Q {[%clk 0:00:28.6]} 91. Kb8 {[%clk 0:00:24.8]} 91... Qb1+ {[%clk
0:00:29.9]} 92. Kc8 {[%clk 0:00:24.4]} 92... Qbb7# {[%clk 0:00:31.1]} 0